[Event "Titled Tuesday Blitz May 23 Early 2023"]
[White "bubeliang"]
[Black "Marcziter, Dmitrii"]
[BlackFideId "13900765"]
[WhiteElo "2620"]
[BlackElo "2162"]
[Result "1-0"]
[Round "10"]
[TimeControl "180+2"]
[Date "2023.05.23"]
[WhiteClock "0:01:23"]
[BlackClock "0:00:01"]

1. e4 {[%clk 0:03:00]}  c5 {[%clk 0:02:59]} 2. c3 {[%clk 0:02:59]}  d5 {[%clk 0:02:58]} 3. exd5 {[%clk 0:02:58]}  Qxd5 {[%clk 0:02:59]} 4. d4 {[%clk 0:02:59]}  Nf6 {[%clk 0:03:00]} 5. Nf3 {[%clk 0:02:58]}  Bg4 {[%clk 0:02:59]} 6. Be2 {[%clk 0:02:58]}  e6 {[%clk 0:02:58]} 7. Na3 {[%clk 0:02:58]}  cxd4 {[%clk 0:02:57]} 8. Nb5 {[%clk 0:02:56]}  Na6 {[%clk 0:02:57]} 9. Nbxd4 {[%clk 0:02:55]}  Nc7 {[%clk 0:02:43]} 10. Bf4 {[%clk 0:02:53]}  Bd6 {[%clk 0:02:27]} 11. Qa4+ {[%clk 0:02:51]}  Ke7 {[%clk 0:02:10]} 12. Bxd6+ {[%clk 0:02:46]}  Qxd6 {[%clk 0:02:06]} 13. Rd1 {[%clk 0:02:45]}  Qb6 {[%clk 0:02:01]} 14. Qa3+ {[%clk 0:02:31]}  Ke8 {[%clk 0:01:56]} 15. O-O {[%clk 0:02:29]}  Rd8 {[%clk 0:01:52]} 16. h3 {[%clk 0:02:27]}  Bh5 {[%clk 0:01:49]} 17. g4 {[%clk 0:02:22]}  Bg6 {[%clk 0:01:49]} 18. Ne5 {[%clk 0:02:23]}  Be4 {[%clk 0:01:42]} 19. Nc4 {[%clk 0:02:06]}  Qa6 {[%clk 0:01:31]} 20. Qb3 {[%clk 0:02:05]}  b5 {[%clk 0:01:26]} 21. Ne3 {[%clk 0:01:57]}  Rb8 {[%clk 0:01:02]} 22. a4 {[%clk 0:01:54]}  Kf8 {[%clk 0:00:48]} 23. axb5 {[%clk 0:01:50]}  Qb7 {[%clk 0:00:40]} 24. Qa3+ {[%clk 0:01:46]}  Kg8 {[%clk 0:00:38]} 25. Ra1 {[%clk 0:01:45]}  Ra8 {[%clk 0:00:31]} 26. f3 {[%clk 0:01:41]}  Bg6 {[%clk 0:00:19]} 27. Nc6 {[%clk 0:01:40]}  Ncd5 {[%clk 0:00:17]} 28. Nxd5 {[%clk 0:01:39]}  Nxd5 {[%clk 0:00:17]} 29. c4 {[%clk 0:01:40]}  Qb6+ {[%clk 0:00:13]} 30. Kh1 {[%clk 0:01:40]}  h5 {[%clk 0:00:05]} 31. cxd5 {[%clk 0:01:33]}  hxg4 {[%clk 0:00:05]} 32. Ne7+ {[%clk 0:01:29]}  Kh7 {[%clk 0:00:06]} 33. fxg4 {[%clk 0:01:25]}  Qd6 {[%clk 0:00:01]} 34. Qxd6 {[%clk 0:01:23]} 1-0


[Site "https://www.chess.com"]

[Event "Titled Tuesday Blitz May 23 Early 2023"]
[White "Siva Mahadevan"]
[Black "Degenbaev, Aziz"]
[WhiteFideId "25043153"]
[BlackFideId "13802640"]
[WhiteElo "2249"]
[BlackElo "2152"]
[Result "1-0"]
[Round "10"]
[TimeControl "180+2"]
[Date "2023.05.23"]
[WhiteClock "0:01:05"]
[BlackClock "0:00:14"]

1. c4 {[%clk 0:03:00]}  Nf6 {[%clk 0:02:59]} 2. Nc3 {[%clk 0:03:00]}  g6 {[%clk 0:03:00]} 3. g3 {[%clk 0:02:59]}  Bg7 {[%clk 0:02:59]} 4. Bg2 {[%clk 0:02:59]}  O-O {[%clk 0:02:55]} 5. Nf3 {[%clk 0:03:00]}  c5 {[%clk 0:02:55]} 6. d4 {[%clk 0:02:56]}  d6 {[%clk 0:02:53]} 7. O-O {[%clk 0:02:56]}  Nc6 {[%clk 0:02:53]} 8. dxc5 {[%clk 0:02:53]}  dxc5 {[%clk 0:02:54]} 9. Be3 {[%clk 0:02:54]}  Be6 {[%clk 0:02:22]} 10. Qa4 {[%clk 0:02:52]}  Nd4 {[%clk 0:02:17]} 11. Rfd1 {[%clk 0:02:48]}  Bd7 {[%clk 0:02:17]} 12. Qa3 {[%clk 0:02:20]}  Nc2 {[%clk 0:02:16]} 13. Qxc5 {[%clk 0:02:20]}  Nxa1 {[%clk 0:02:16]} 14. Rxa1 {[%clk 0:02:21]}  b6 {[%clk 0:02:07]} 15. Qb4 {[%clk 0:02:19]}  Rc8 {[%clk 0:02:07]} 16. Rd1 {[%clk 0:02:19]}  Qc7 {[%clk 0:01:52]} 17. b3 {[%clk 0:02:18]}  e5 {[%clk 0:01:36]} 18. Bg5 {[%clk 0:02:15]}  Bc6 {[%clk 0:01:27]} 19. Nb5 {[%clk 0:02:09]}  Bxb5 {[%clk 0:01:26]} 20. Qxb5 {[%clk 0:02:10]}  e4 {[%clk 0:01:23]} 21. Nd4 {[%clk 0:02:03]}  Rfd8 {[%clk 0:01:19]} 22. e3 {[%clk 0:01:58]}  Qc5 {[%clk 0:01:14]} 23. Re1 {[%clk 0:01:33]}  a6 {[%clk 0:01:07]} 24. Qxc5 {[%clk 0:01:29]}  bxc5 {[%clk 0:01:08]} 25. Ne2 {[%clk 0:01:26]}  Rd2 {[%clk 0:01:06]} 26. Nc3 {[%clk 0:01:26]}  Rc2 {[%clk 0:01:01]} 27. Bxf6 {[%clk 0:01:25]}  Bxf6 {[%clk 0:01:00]} 28. Nxe4 {[%clk 0:01:26]}  Be7 {[%clk 0:00:58]} 29. Rd1 {[%clk 0:01:18]}  f5 {[%clk 0:00:58]} 30. Nd2 {[%clk 0:01:17]}  Rxa2 {[%clk 0:00:54]} 31. Bd5+ {[%clk 0:01:15]}  Kg7 {[%clk 0:00:52]} 32. Nf3 {[%clk 0:01:16]}  Bf6 {[%clk 0:00:53]} 33. Be6 {[%clk 0:01:15]}  Rd8 {[%clk 0:00:53]} 34. Bd5 {[%clk 0:01:15]}  Rb2 {[%clk 0:00:47]} 35. Ra1 {[%clk 0:01:14]}  Rd6 {[%clk 0:00:47]} 36. Ra3 {[%clk 0:01:13]}  Bc3 {[%clk 0:00:42]} 37. Ng5 {[%clk 0:01:11]}  Bb4 {[%clk 0:00:39]} 38. Ra1 {[%clk 0:01:11]}  h6 {[%clk 0:00:38]} 39. Ne6+ {[%clk 0:01:11]}  Kf6 {[%clk 0:00:38]} 40. Nc7 {[%clk 0:01:11]}  Rxb3 {[%clk 0:00:37]} 41. Ne8+ {[%clk 0:01:11]}  Ke7 {[%clk 0:00:37]} 42. Nxd6 {[%clk 0:01:12]}  Kxd6 {[%clk 0:00:38]} 43. Rxa6+ {[%clk 0:01:13]}  Ke7 {[%clk 0:00:38]} 44. Rxg6 {[%clk 0:01:13]}  Rb1+ {[%clk 0:00:36]} 45. Kg2 {[%clk 0:01:13]}  Rb2 {[%clk 0:00:36]} 46. Rxh6 {[%clk 0:01:13]}  Be1 {[%clk 0:00:37]} 47. Re6+ {[%clk 0:01:13]}  Kd7 {[%clk 0:00:37]} 48. Kf1 {[%clk 0:01:13]}  Bxf2 {[%clk 0:00:32]} 49. Re5 {[%clk 0:01:10]}  Kd6 {[%clk 0:00:31]} 50. Re8 {[%clk 0:01:08]}  Kd7 {[%clk 0:00:31]} 51. Bf7 {[%clk 0:01:09]}  Rc2 {[%clk 0:00:27]} 52. Bg6 {[%clk 0:01:03]}  Rb2 {[%clk 0:00:24]} 53. Re5 {[%clk 0:01:01]}  Kd6 {[%clk 0:00:22]} 54. Rd5+ {[%clk 0:01:02]}  Kc6 {[%clk 0:00:23]} 55. Rd3 {[%clk 0:01:02]}  f4 {[%clk 0:00:18]} 56. gxf4 {[%clk 0:01:00]}  Bh4 {[%clk 0:00:19]} 57. Be4+ {[%clk 0:01:00]}  Kc7 {[%clk 0:00:18]} 58. Rd5 {[%clk 0:00:56]}  Rxh2 {[%clk 0:00:13]} 59. Rxc5+ {[%clk 0:00:56]}  Kd6 {[%clk 0:00:13]} 60. Rd5+ {[%clk 0:00:56]}  Ke6 {[%clk 0:00:14]} 61. Re5+ {[%clk 0:00:56]}  Kf6 {[%clk 0:00:13]} 62. Rh5 {[%clk 0:00:56]}  Rf2+ {[%clk 0:00:03]} 63. Kg1 {[%clk 0:00:56]}  Re2 {[%clk 0:00:04]} 64. Rxh4 {[%clk 0:00:55]}  Rxe3 {[%clk 0:00:05]} 65. Bd5 {[%clk 0:00:54]}  Kf5 {[%clk 0:00:06]} 66. Kf2 {[%clk 0:00:55]}  Rc3 {[%clk 0:00:06]} 67. Ke2 {[%clk 0:00:55]}  Rc2+ {[%clk 0:00:05]} 68. Kd3 {[%clk 0:00:55]}  Rc1 {[%clk 0:00:06]} 69. Kd4 {[%clk 0:00:56]}  Rd1+ {[%clk 0:00:06]} 70. Kc5 {[%clk 0:00:56]}  Rc1 {[%clk 0:00:07]} 71. Kd6 {[%clk 0:00:57]}  Rd1 {[%clk 0:00:07]} 72. c5 {[%clk 0:00:57]}  Rc1 {[%clk 0:00:08]} 73. c6 {[%clk 0:00:58]}  Rd1 {[%clk 0:00:09]} 74. c7 {[%clk 0:00:58]}  Rc1 {[%clk 0:00:10]} 75. c8=Q+ {[%clk 0:00:59]}  Rxc8 {[%clk 0:00:09]} 76. Be6+ {[%clk 0:00:59]}  Ke4 {[%clk 0:00:10]} 77. Bxc8 {[%clk 0:01:00]}  Kf3 {[%clk 0:00:11]} 78. f5 {[%clk 0:01:00]}  Kg3 {[%clk 0:00:12]} 79. Re4 {[%clk 0:01:00]}  Kf3 {[%clk 0:00:12]} 80. Ke5 {[%clk 0:01:01]}  Kg3 {[%clk 0:00:12]} 81. Rf4 {[%clk 0:01:01]}  Kg2 {[%clk 0:00:12]} 82. f6 {[%clk 0:01:02]}  Kh1 {[%clk 0:00:13]} 83. Rg4 {[%clk 0:01:02]}  Kh2 {[%clk 0:00:13]} 84. f7 {[%clk 0:01:03]}  Kh3 {[%clk 0:00:14]} 85. f8=Q {[%clk 0:01:04]}  Kh2 {[%clk 0:00:14]} 86. Qh8# {[%clk 0:01:05]} 1-0


[Site "https://www.chess.com"]

[Event "Titled Tuesday Blitz May 23 Early 2023"]
[White "Liu, Casper"]
[Black "Zemlyanskii, Ivan"]
[WhiteFideId "1454153"]
[BlackFideId "24249971"]
[WhiteElo "2221"]
[BlackElo "2421"]
[Result "0-1"]
[Round "10"]
[TimeControl "180+2"]
[Date "2023.05.23"]
[WhiteClock "0:00:10"]
[BlackClock "0:00:23"]

1. d4 {[%clk 0:02:10]}  Nc6 {[%clk 0:02:57]} 2. Bf4 {[%clk 0:02:09]}  d6 {[%clk 0:02:58]} 3. Nf3 {[%clk 0:02:08]}  Nf6 {[%clk 0:02:37]} 4. Nc3 {[%clk 0:02:06]}  Bf5 {[%clk 0:02:30]} 5. d5 {[%clk 0:02:05]}  Nb4 {[%clk 0:02:23]} 6. Nd4 {[%clk 0:01:29]}  Bg6 {[%clk 0:02:22]} 7. e4 {[%clk 0:01:25]}  c5 {[%clk 0:01:33]} 8. Bb5+ {[%clk 0:01:05]}  Nd7 {[%clk 0:01:31]} 9. Ne6 {[%clk 0:01:06]}  Qc8 {[%clk 0:01:11]} 10. a3 {[%clk 0:00:56]}  Na6 {[%clk 0:01:09]} 11. Qg4 {[%clk 0:00:48]}  Nc7 {[%clk 0:01:00]} 12. Nxc7+ {[%clk 0:00:28]}  Qxc7 {[%clk 0:01:00]} 13. O-O-O {[%clk 0:00:26]}  a6 {[%clk 0:01:00]} 14. Bxd7+ {[%clk 0:00:15]}  Qxd7 {[%clk 0:01:00]} 15. Qxd7+ {[%clk 0:00:15]}  Kxd7 {[%clk 0:01:01]} 16. h4 {[%clk 0:00:16]}  h5 {[%clk 0:00:58]} 17. a4 {[%clk 0:00:16]}  b6 {[%clk 0:00:55]} 18. f3 {[%clk 0:00:16]}  f6 {[%clk 0:00:54]} 19. b3 {[%clk 0:00:12]}  Bf7 {[%clk 0:00:53]} 20. Kb2 {[%clk 0:00:12]}  Rg8 {[%clk 0:00:52]} 21. Be3 {[%clk 0:00:08]}  g5 {[%clk 0:00:51]} 22. hxg5 {[%clk 0:00:08]}  fxg5 {[%clk 0:00:52]} 23. Ne2 {[%clk 0:00:08]}  Bg7+ {[%clk 0:00:49]} 24. c3 {[%clk 0:00:08]}  Bf6 {[%clk 0:00:44]} 25. Ng3 {[%clk 0:00:07]}  h4 {[%clk 0:00:43]} 26. Nf5 {[%clk 0:00:08]}  Rh8 {[%clk 0:00:36]} 27. Kc2 {[%clk 0:00:08]}  b5 {[%clk 0:00:35]} 28. axb5 {[%clk 0:00:07]}  axb5 {[%clk 0:00:36]} 29. Ra1 {[%clk 0:00:08]}  b4 {[%clk 0:00:35]} 30. Bd2 {[%clk 0:00:07]}  e6 {[%clk 0:00:26]} 31. Ne3 {[%clk 0:00:06]}  exd5 {[%clk 0:00:24]} 32. exd5 {[%clk 0:00:07]}  Rhe8 {[%clk 0:00:19]} 33. Nc4 {[%clk 0:00:07]}  Kc7 {[%clk 0:00:17]} 34. Rxa8 {[%clk 0:00:06]}  Rxa8 {[%clk 0:00:18]} 35. Kb2 {[%clk 0:00:05]}  Bxd5 {[%clk 0:00:16]} 36. Ne3 {[%clk 0:00:04]}  Be6 {[%clk 0:00:15]} 37. Re1 {[%clk 0:00:04]}  Ra3 {[%clk 0:00:13]} 38. Nc2 {[%clk 0:00:03]}  Rxb3+ {[%clk 0:00:13]} 39. Kc1 {[%clk 0:00:04]}  bxc3 {[%clk 0:00:11]} 40. Rxe6 {[%clk 0:00:02]}  cxd2+ {[%clk 0:00:11]} 41. Kxd2 {[%clk 0:00:03]}  Be5 {[%clk 0:00:12]} 42. Re7+ {[%clk 0:00:03]}  Kc6 {[%clk 0:00:12]} 43. Ne3 {[%clk 0:00:04]}  Bf4 {[%clk 0:00:12]} 44. Ke2 {[%clk 0:00:03]}  Rxe3+ {[%clk 0:00:13]} 45. Rxe3 {[%clk 0:00:03]}  Bxe3 {[%clk 0:00:14]} 46. Kxe3 {[%clk 0:00:04]}  Kd5 {[%clk 0:00:15]} 47. f4 {[%clk 0:00:04]}  gxf4+ {[%clk 0:00:16]} 48. Kxf4 {[%clk 0:00:05]}  c4 {[%clk 0:00:16]} 49. Kg4 {[%clk 0:00:06]}  c3 {[%clk 0:00:17]} 50. Kxh4 {[%clk 0:00:07]}  c2 {[%clk 0:00:18]} 51. g4 {[%clk 0:00:08]}  c1=Q {[%clk 0:00:19]} 52. g5 {[%clk 0:00:09]}  Ke5 {[%clk 0:00:19]} 53. g6 {[%clk 0:00:10]}  Kf6 {[%clk 0:00:20]} 54. g7 {[%clk 0:00:10]}  Qg5+ {[%clk 0:00:20]} 55. Kh3 {[%clk 0:00:10]}  Qxg7 {[%clk 0:00:21]} 56. Kh2 {[%clk 0:00:10]}  Kf5 {[%clk 0:00:22]} 57. Kh1 {[%clk 0:00:11]}  Kf4 {[%clk 0:00:23]} 58. Kh2 {[%clk 0:00:11]}  Qg4 {[%clk 0:00:23]} 59. Kh1 {[%clk 0:00:10]}  Kf3 {[%clk 0:00:23]} 0-1


[Site "https://www.chess.com"]

[Event "Titled Tuesday Blitz May 23 Early 2023"]
[White "Javakhadze, Zurab"]
[Black "Martic, Ivan"]
[WhiteFideId "13603647"]
[BlackFideId "929301"]
[WhiteElo "2381"]
[BlackElo "2360"]
[Result "0-1"]
[Round "10"]
[TimeControl "180+2"]
[Date "2023.05.23"]
[WhiteClock "0:00:00"]
[BlackClock "0:00:20"]

1. d4 {[%clk 0:03:00]}  d5 {[%clk 0:02:59]} 2. c4 {[%clk 0:02:58]}  c6 {[%clk 0:02:59]} 3. Nc3 {[%clk 0:02:58]}  Nf6 {[%clk 0:02:59]} 4. e3 {[%clk 0:02:58]}  a6 {[%clk 0:02:57]} 5. Nf3 {[%clk 0:02:54]}  e6 {[%clk 0:02:55]} 6. b3 {[%clk 0:02:53]}  Nbd7 {[%clk 0:02:47]} 7. Bd3 {[%clk 0:02:51]}  b5 {[%clk 0:02:45]} 8. O-O {[%clk 0:02:50]}  Bb4 {[%clk 0:02:39]} 9. Bd2 {[%clk 0:02:48]}  Ba5 {[%clk 0:02:33]} 10. Qe1 {[%clk 0:02:31]}  Bc7 {[%clk 0:02:25]} 11. e4 {[%clk 0:02:29]}  dxe4 {[%clk 0:02:21]} 12. Nxe4 {[%clk 0:02:27]}  O-O {[%clk 0:02:16]} 13. Bb4 {[%clk 0:02:09]}  Re8 {[%clk 0:02:10]} 14. Nd6 {[%clk 0:02:08]}  Bxd6 {[%clk 0:02:07]} 15. Bxd6 {[%clk 0:02:09]}  bxc4 {[%clk 0:02:05]} 16. bxc4 {[%clk 0:02:09]}  c5 {[%clk 0:02:05]} 17. dxc5 {[%clk 0:01:49]}  Nxc5 {[%clk 0:02:04]} 18. Bxh7+ {[%clk 0:01:41]}  Nxh7 {[%clk 0:01:58]} 19. Bxc5 {[%clk 0:01:42]}  Bb7 {[%clk 0:01:54]} 20. Qe3 {[%clk 0:01:34]}  Rc8 {[%clk 0:01:48]} 21. Ne5 {[%clk 0:01:20]}  Qh4 {[%clk 0:01:30]} 22. Rad1 {[%clk 0:01:03]}  Nf6 {[%clk 0:01:18]} 23. f3 {[%clk 0:00:56]}  Qh5 {[%clk 0:01:05]} 24. Bd4 {[%clk 0:00:50]}  Qf5 {[%clk 0:00:56]} 25. Rd2 {[%clk 0:00:38]}  Red8 {[%clk 0:00:54]} 26. Rfd1 {[%clk 0:00:38]}  a5 {[%clk 0:00:41]} 27. g4 {[%clk 0:00:26]}  Qh7 {[%clk 0:00:40]} 28. Qg5 {[%clk 0:00:26]}  Ne8 {[%clk 0:00:38]} 29. Qe3 {[%clk 0:00:13]}  f6 {[%clk 0:00:31]} 30. Nd3 {[%clk 0:00:08]}  e5 {[%clk 0:00:32]} 31. Bb6 {[%clk 0:00:08]}  Rd7 {[%clk 0:00:29]} 32. Nc5 {[%clk 0:00:07]}  Rxd2 {[%clk 0:00:26]} 33. Qxd2 {[%clk 0:00:05]}  Bxf3 {[%clk 0:00:24]} 34. Rf1 {[%clk 0:00:00]}  Qh3 {[%clk 0:00:20]} 0-1


[Site "https://www.chess.com"]

[Event "Titled Tuesday Blitz May 23 Early 2023"]
[White "Simonian, Hrair"]
[Black "Flynn, Jacob"]
[WhiteFideId "13302337"]
[BlackFideId "2509393"]
[WhiteElo "2447"]
[BlackElo "2053"]
[Result "1-0"]
[Round "10"]
[TimeControl "180+2"]
[Date "2023.05.23"]
[WhiteClock "0:02:05"]
[BlackClock "0:01:23"]

1. e4 {[%clk 0:03:00]}  e5 {[%clk 0:02:58]} 2. Nf3 {[%clk 0:03:00]}  Nc6 {[%clk 0:02:58]} 3. Bb5 {[%clk 0:03:00]}  a6 {[%clk 0:02:58]} 4. Ba4 {[%clk 0:03:00]}  Nf6 {[%clk 0:02:58]} 5. O-O {[%clk 0:03:01]}  Be7 {[%clk 0:02:59]} 6. Bxc6 {[%clk 0:03:01]}  dxc6 {[%clk 0:02:59]} 7. d3 {[%clk 0:03:02]}  Nd7 {[%clk 0:02:59]} 8. Nbd2 {[%clk 0:03:03]}  O-O {[%clk 0:02:57]} 9. Nc4 {[%clk 0:03:04]}  Bd6 {[%clk 0:02:56]} 10. b3 {[%clk 0:03:03]}  Re8 {[%clk 0:02:56]} 11. Bb2 {[%clk 0:03:02]}  f6 {[%clk 0:02:41]} 12. Nh4 {[%clk 0:03:02]}  Nf8 {[%clk 0:02:41]} 13. Nf5 {[%clk 0:03:02]}  c5 {[%clk 0:02:31]} 14. Qg4 {[%clk 0:02:55]}  Qd7 {[%clk 0:02:31]} 15. Ncxd6 {[%clk 0:02:46]}  cxd6 {[%clk 0:02:29]} 16. Nh6+ {[%clk 0:02:47]}  Kh8 {[%clk 0:02:28]} 17. Qxd7 {[%clk 0:02:48]}  Bxd7 {[%clk 0:02:28]} 18. Nf7+ {[%clk 0:02:49]}  Kg8 {[%clk 0:02:27]} 19. Nxd6 {[%clk 0:02:50]}  Reb8 {[%clk 0:02:18]} 20. a4 {[%clk 0:02:49]}  b5 {[%clk 0:02:12]} 21. axb5 {[%clk 0:02:43]}  axb5 {[%clk 0:02:13]} 22. Rxa8 {[%clk 0:02:41]}  Rxa8 {[%clk 0:02:14]} 23. Ra1 {[%clk 0:02:40]}  Rxa1+ {[%clk 0:02:14]} 24. Bxa1 {[%clk 0:02:41]}  Bc6 {[%clk 0:02:05]} 25. Nf5 {[%clk 0:02:37]}  Kf7 {[%clk 0:02:04]} 26. Ne3 {[%clk 0:02:30]}  Ke6 {[%clk 0:01:56]} 27. f3 {[%clk 0:02:27]}  g6 {[%clk 0:01:44]} 28. c3 {[%clk 0:02:27]}  Nd7 {[%clk 0:01:44]} 29. d4 {[%clk 0:02:25]}  cxd4 {[%clk 0:01:44]} 30. cxd4 {[%clk 0:02:26]}  exd4 {[%clk 0:01:44]} 31. Bxd4 {[%clk 0:02:27]}  Nb8 {[%clk 0:01:40]} 32. Nc2 {[%clk 0:02:24]}  f5 {[%clk 0:01:37]} 33. Ba7 {[%clk 0:02:11]}  Nd7 {[%clk 0:01:35]} 34. Nd4+ {[%clk 0:02:11]}  Kd6 {[%clk 0:01:34]} 35. exf5 {[%clk 0:02:09]}  gxf5 {[%clk 0:01:32]} 36. Nxf5+ {[%clk 0:02:10]}  Kd5 {[%clk 0:01:23]} 37. Ne7+ {[%clk 0:02:06]}  Kd6 {[%clk 0:01:23]} 38. Nxc6 {[%clk 0:02:05]}  Kxc6 {[%clk 0:01:23]} 1-0


[Site "https://www.chess.com"]

[Event "Titled Tuesday Blitz May 23 Early 2023"]
[White "Gheorghiu, Calin"]
[Black "Andreev, Konstantin"]
[WhiteFideId "1200305"]
[BlackFideId "24239305"]
[WhiteElo "2223"]
[BlackElo "2106"]
[Result "1-0"]
[Round "10"]
[TimeControl "180+2"]
[Date "2023.05.23"]
[WhiteClock "0:00:07"]
[BlackClock "0:00:02"]

1. e4 {[%clk 0:03:00]}  c5 {[%clk 0:03:00]} 2. Nf3 {[%clk 0:02:59]}  e6 {[%clk 0:03:00]} 3. g3 {[%clk 0:02:57]}  Nc6 {[%clk 0:03:01]} 4. Bg2 {[%clk 0:02:57]}  g6 {[%clk 0:03:00]} 5. O-O {[%clk 0:02:57]}  Bg7 {[%clk 0:03:01]} 6. c3 {[%clk 0:02:57]}  Nge7 {[%clk 0:03:01]} 7. d4 {[%clk 0:02:55]}  cxd4 {[%clk 0:03:01]} 8. cxd4 {[%clk 0:02:55]}  d6 {[%clk 0:03:02]} 9. Nc3 {[%clk 0:02:55]}  O-O {[%clk 0:03:01]} 10. Bg5 {[%clk 0:02:48]}  h6 {[%clk 0:02:57]} 11. Be3 {[%clk 0:02:47]}  a6 {[%clk 0:02:56]} 12. Qd2 {[%clk 0:02:47]}  Kh7 {[%clk 0:02:57]} 13. Rac1 {[%clk 0:02:45]}  b5 {[%clk 0:02:56]} 14. d5 {[%clk 0:02:34]}  Na5 {[%clk 0:02:54]} 15. b3 {[%clk 0:02:35]}  exd5 {[%clk 0:02:50]} 16. Nxd5 {[%clk 0:02:33]}  Nxd5 {[%clk 0:02:49]} 17. exd5 {[%clk 0:02:33]}  Nb7 {[%clk 0:02:33]} 18. Nd4 {[%clk 0:02:30]}  Qa5 {[%clk 0:02:12]} 19. b4 {[%clk 0:02:24]}  Qa4 {[%clk 0:02:01]} 20. Bf3 {[%clk 0:02:18]}  a5 {[%clk 0:01:59]} 21. bxa5 {[%clk 0:01:54]}  Qxa5 {[%clk 0:01:37]} 22. Rc2 {[%clk 0:01:50]}  Qxd2 {[%clk 0:01:34]} 23. Rxd2 {[%clk 0:01:48]}  Na5 {[%clk 0:01:25]} 24. Nxb5 {[%clk 0:01:35]}  Ba6 {[%clk 0:01:24]} 25. a4 {[%clk 0:01:33]}  Nc4 {[%clk 0:01:10]} 26. Re2 {[%clk 0:01:24]}  Nb2 {[%clk 0:01:08]} 27. Rb1 {[%clk 0:01:01]}  Nxa4 {[%clk 0:01:03]} 28. Ra2 {[%clk 0:00:57]}  Nc3 {[%clk 0:00:39]} 29. Nxc3 {[%clk 0:00:56]}  Bxc3 {[%clk 0:00:40]} 30. Rb6 {[%clk 0:00:49]}  Bc4 {[%clk 0:00:35]} 31. Rxa8 {[%clk 0:00:40]}  Rxa8 {[%clk 0:00:36]} 32. h4 {[%clk 0:00:35]}  Ra1+ {[%clk 0:00:24]} 33. Kg2 {[%clk 0:00:34]}  Be5 {[%clk 0:00:22]} 34. Rb7 {[%clk 0:00:32]}  Kg7 {[%clk 0:00:22]} 35. h5 {[%clk 0:00:29]}  gxh5 {[%clk 0:00:18]} 36. Rc7 {[%clk 0:00:27]}  Bb3 {[%clk 0:00:17]} 37. Kh3 {[%clk 0:00:25]}  Kg6 {[%clk 0:00:13]} 38. Be4+ {[%clk 0:00:18]}  f5 {[%clk 0:00:12]} 39. Bf3 {[%clk 0:00:17]}  Ra5 {[%clk 0:00:10]} 40. Kh4 {[%clk 0:00:11]}  Bxd5 {[%clk 0:00:08]} 41. Bxh5+ {[%clk 0:00:10]}  Kf6 {[%clk 0:00:09]} 42. Bxh6 {[%clk 0:00:09]}  Bd4 {[%clk 0:00:04]} 43. f4 {[%clk 0:00:08]}  Bc4 {[%clk 0:00:03]} 44. Bg5+ {[%clk 0:00:07]}  Ke6 {[%clk 0:00:02]} 45. Bf7# {[%clk 0:00:07]} 1-0


[Site "https://www.chess.com"]

[Event "Titled Tuesday Blitz May 23 Early 2023"]
[White "Korchmar, Vasiliy"]
[Black "Garakov, Mikhael"]
[WhiteFideId "24131750"]
[BlackFideId "4169034"]
[WhiteElo "2370"]
[BlackElo "2347"]
[Result "0-1"]
[Round "10"]
[TimeControl "180+2"]
[Date "2023.05.23"]
[WhiteClock "0:00:27"]
[BlackClock "0:00:08"]

1. e4 {[%clk 0:03:00]}  c5 {[%clk 0:02:40]} 2. Nf3 {[%clk 0:03:00]}  e6 {[%clk 0:02:39]} 3. g3 {[%clk 0:03:00]}  Nc6 {[%clk 0:02:39]} 4. Bg2 {[%clk 0:03:00]}  Nf6 {[%clk 0:02:36]} 5. Qe2 {[%clk 0:03:00]}  d6 {[%clk 0:02:33]} 6. O-O {[%clk 0:03:00]}  Be7 {[%clk 0:02:32]} 7. c3 {[%clk 0:03:00]}  O-O {[%clk 0:02:32]} 8. d4 {[%clk 0:02:59]}  Bd7 {[%clk 0:01:59]} 9. h3 {[%clk 0:02:55]}  cxd4 {[%clk 0:01:58]} 10. cxd4 {[%clk 0:02:55]}  Rc8 {[%clk 0:01:58]} 11. Nc3 {[%clk 0:02:55]}  Qa5 {[%clk 0:01:56]} 12. Rd1 {[%clk 0:02:50]}  Qa6 {[%clk 0:01:47]} 13. Qe1 {[%clk 0:02:47]}  Nb4 {[%clk 0:01:46]} 14. Qd2 {[%clk 0:02:33]}  d5 {[%clk 0:01:38]} 15. Ne5 {[%clk 0:02:24]}  dxe4 {[%clk 0:01:25]} 16. Nxe4 {[%clk 0:02:25]}  Rc2 {[%clk 0:01:13]} 17. Qf4 {[%clk 0:02:25]}  Nfd5 {[%clk 0:01:07]} 18. Qg4 {[%clk 0:02:17]}  f5 {[%clk 0:01:01]} 19. Qh5 {[%clk 0:02:17]}  Be8 {[%clk 0:00:58]} 20. Qf3 {[%clk 0:02:09]}  fxe4 {[%clk 0:00:59]} 21. Qxe4 {[%clk 0:02:10]}  Rfxf2 {[%clk 0:00:57]} 22. Bf3 {[%clk 0:01:49]}  Bb5 {[%clk 0:00:44]} 23. a4 {[%clk 0:01:39]}  Be2 {[%clk 0:00:43]} 24. Kxf2 {[%clk 0:00:54]}  Bxd1+ {[%clk 0:00:41]} 25. Kg1 {[%clk 0:00:54]}  Bxf3 {[%clk 0:00:26]} 26. Qxf3 {[%clk 0:00:55]}  Bf6 {[%clk 0:00:26]} 27. Qh5 {[%clk 0:00:55]}  g6 {[%clk 0:00:19]} 28. Nxg6 {[%clk 0:00:56]}  Qe2 {[%clk 0:00:17]} 29. Qxe2 {[%clk 0:00:41]}  Rxe2 {[%clk 0:00:17]} 30. Nf4 {[%clk 0:00:42]}  Nxf4 {[%clk 0:00:17]} 31. Kf1 {[%clk 0:00:43]}  Bxd4 {[%clk 0:00:12]} 32. Bxf4 {[%clk 0:00:42]}  Rxb2 {[%clk 0:00:12]} 33. Rc1 {[%clk 0:00:43]}  e5 {[%clk 0:00:11]} 34. Rc8+ {[%clk 0:00:39]}  Kf7 {[%clk 0:00:11]} 35. Bc1 {[%clk 0:00:38]}  Rf2+ {[%clk 0:00:11]} 36. Ke1 {[%clk 0:00:38]}  Nd3+ {[%clk 0:00:11]} 37. Kd1 {[%clk 0:00:37]}  Rf1+ {[%clk 0:00:10]} 38. Ke2 {[%clk 0:00:37]}  Rxc1 {[%clk 0:00:09]} 39. Rb8 {[%clk 0:00:38]}  e4 {[%clk 0:00:09]} 40. Rxb7+ {[%clk 0:00:37]}  Ke6 {[%clk 0:00:10]} 41. Rxh7 {[%clk 0:00:34]}  Rc2+ {[%clk 0:00:09]} 42. Kd1 {[%clk 0:00:34]}  Rg2 {[%clk 0:00:09]} 43. Rh4 {[%clk 0:00:27]}  e3 {[%clk 0:00:08]} 0-1


[Site "https://www.chess.com"]